fUSD/lending_fUSD_20250824
["ID","MTS","AMOUNT","RATE_DAILY","PERIOD"]
[381131340,1756063848193,-150.0,0.00019701,4]
[381131341,1756063848203,-150.0,0.00019701,4]
[381131342,1756063848213,-150.0,0.00019701,4]
[381131343,1756063848224,-150.0,0.00019701,4]
[381131344,1756063848234,-150.0,0.00019701,4]
[381131345,1756063848243,-150.0,0.00019701,4]
[381131346,1756063848253,-150.0,0.00019701,4]
[381131347,1756063848262,-200.0,0.0001971,2]
[381131348,1756063848272,-1425.0,0.00019781,2]
[381131349,1756063848281,-150.68972433,0.00019805,2]
[381131350,1756063848290,-150.0,0.00019945,4]
[381131351,1756063848300,-1425.0,0.00019963,2]
[381131352,1756063848310,-333.0,0.0002,2]
[381131353,1756063848320,-392.04,0.00020001,2]
[381131354,1756063848330,-150.0,0.00020014,4]
[381131355,1756063848339,-1425.0,0.00020081,2]
[381131356,1756063848349,-150.68972433,0.00020185,2]
[381131357,1756063848361,-171.64,0.00020187,2]
[381131358,1756063848371,-150.0,0.00020188,4]
[381131359,1756063848381,-2500.0,0.000202,3]
[381131360,1756063848391,-1425.0,0.00020202,2]
[381131361,1756063848402,-1425.0,0.00020234,2]
[381131362,1756063848412,-150.0,0.00020249,4]
[381131363,1756063848422,-1425.0,0.00020295,2]
[381131364,1756063848432,-150.0,0.00020327,4]
[381131365,1756063848441,-1425.0,0.00020354,2]
[381131366,1756063848450,-1425.0,0.00020354,2]
[381131367,1756063848460,-1425.0,0.00020379,2]
[381131368,1756063848469,-200.0,0.00020411,2]
[381131369,1756063848478,-1536.22,0.00020415,2]
[381131370,1756063848488,-150.0,0.00020431,4]
[381131371,1756063848497,-150.0,0.00020431,4]
[381131372,1756063848507,-150.0,0.00020431,4]
[381131373,1756063848516,-150.0,0.00020431,4]
[381131374,1756063848527,-1000.0,0.00020444,2]
[381131375,1756063848536,-1000.0,0.00020495,2]
[381131376,1756063848545,-150.68972433,0.00020566,2]
[381131377,1756063848555,-5572.88740186,0.00020586,2]
[381131379,1756063848569,-7777.8987755,0.00020586,2]
[381131380,1756063848660,-747.1519984,0.00020586,2]
[381131381,1756063848704,-458.63746581,0.000166,3]
[381131382,1756063848714,-10107.78182424,0.00020586,2]
[381131383,1756063848724,-666.0,0.0002061,3]
[381131384,1756063848733,-3754.6,0.00020618,2]
[381131385,1756063848743,-150.0,0.0002064,4]
[381131386,1756063848753,-436.95347097,0.00020644,2]
[381131387,1756063848762,-13.42550184,0.00020653,2]
[381131388,1756063848775,-1411.57449816,0.00020653,2]
[381131389,1756063848784,-168.93,0.00020674,2]
[381131390,1756063848793,-150.0,0.00020674,4]
[381131391,1756063848803,-267.46074303,0.00020689,2]
[381131392,1756063848813,-4236.55047384,0.00020689,2]
[381131393,1756063848825,-772.98081719,0.00020689,2]
[381131394,1756063848836,-189.90555341,0.00020689,2]
[381131395,1756063848845,-429.49444639,0.00020744,2]
[381131396,1756063849366,-4962.3215613,0.00020744,2]
[381131397,1756063849377,-150.0,0.00020796,4]
[381131398,1756063849387,-150.0,0.00020796,4]
[381131399,1756063849396,-150.0,0.00020796,4]
[381131400,1756063849405,-4639.97448235,0.00020799,2]
[381131401,1756063849415,-1425.0,0.00020848,2]
[381131402,1756063849423,-1425.0,0.00020872,2]
[381131403,1756063849433,-1425.0,0.00020874,2]
[381131404,1756063849443,-150.0,0.00020918,4]
[381131405,1756063849452,-150.68972433,0.00020947,2]
[381131406,1756063849461,-150.0,0.00020952,4]
[381131407,1756063849471,-392.04,0.00020954,2]
[381131408,1756063849480,-17813.04482206,0.00020961,2]
[381131409,1756063849489,-1425.0,0.00020986,2]
[381131410,1756063849499,-1425.0,0.00020996,2]
[381131411,1756063849509,-497.47214033,0.00021,2]
[381131412,1756063849519,-2300.00000003,0.00021,2]
[381131413,1756063849528,-880.68629776,0.00021019,2]
[381131414,1756063849538,-1000.0,0.00021039,2]
[381131415,1756063849548,-436.95347092,0.00021046,2]
[381131416,1756063849559,-322.6107,0.00021049,2]
[381131417,1756063849570,-160.0,0.00021049,2]
[381131418,1756063849587,-695.39793187,0.00021049,2]
[381131419,1756063849614,-151.0,0.00021049,2]
[381131420,1756063849627,-894.0,0.00021061,2]
[381131421,1756063849637,-1173.0,0.00021061,2]
[381131422,1756063849648,-925.0,0.00021061,2]
[381131423,1756063849657,-2031.0,0.00021061,2]
[381131424,1756063849667,-6144.0,0.00021061,2]
[381131425,1756063849676,-3373.0,0.00021061,2]
[381131426,1756063849685,-1255.0,0.00021061,2]
[381131427,1756063850030,-21513.0,0.00021061,2]
[381131428,1756063850052,-166.66,0.0002107,2]
[381131429,1756063850072,-10000.0,0.000211,2]
[381131430,1756063850082,-1000.0,0.00021109,2]
[381131431,1756063850092,-1000.0,0.00021114,2]
[381131432,1756063850101,-17813.04482198,0.00021117,2]
[381131433,1756063850113,-14766.29767461,0.00021144,2]
[381131434,1756063850123,-150.0,0.00021161,4]
[381131435,1756063850133,-150.0,0.00021161,4]
[381131436,1756063850142,-150.0,0.00021161,4]
[381131437,1756063850152,-150.0,0.00021161,4]
[381131438,1756063850161,-327.0,0.0002118,2]
[381131439,1756063850171,-1000.0,0.00021188,2]
[381131440,1756063850182,-1000.0,0.00021202,2]
[381131441,1756063850192,-1425.0,0.00021211,2]
[381131442,1756063850202,-343.88492661,0.00021233,2]
[381131443,1756063850212,-13586.4775035,0.00021235,2]
[381131444,1756063850221,-3431.0433277,0.00021235,2]
[381131445,1756063850230,-176.1027929,0.00021235,2]
[381131446,1756063850239,-180.6800877,0.00021235,2]
[381131447,1756063850249,-150.0,0.00021237,2]
[381131448,1756063850260,-1425.0,0.00021246,2]
[381131449,1756063850269,-184885.13418172,0.00021246,2]
[381131450,1756063850278,-184885.13418172,0.00021252,2]
[381131451,1756063850288,-1933.54770399,0.00021259,2]
[381131452,1756063850298,-150.0,0.00021265,4]
[381131453,1756063850307,-500.0,0.00021269,2]
[381131454,1756063850317,-17813.04482198,0.00021273,2]
[381131455,1756063850326,-14766.29767453,0.0002128,2]
[381131456,1756063850335,-1751.69713837,0.00021281,2]
[381131457,1756063850347,-22717.32885385,0.00021281,2]
[381131458,1756063875959,713.16,0.00026599,120]
[381131465,1756064165973,1000.0,0.0001359,3]
[381131474,1756064418455,250.44863722,0.00014,7]
[381131495,1756064828685,281.6,0.000264,120]
[381131565,1756065032416,-396.41273275,0.00012807,2]
[381131615,1756065032936,-500.0,0.0001288,2]
[381131618,1756065032951,-250.0,0.00012906,2]
[381131619,1756065032967,-300.0,0.00012956,2]
[381131621,1756065032983,-269.83716716,0.00013,2]
[381131624,1756065032999,-159.6,0.00013349,2]
[381131626,1756065033014,-243.89932928,0.00013422,2]
[381131628,1756065033031,-500.0,0.00013699,2]
[381131630,1756065033046,-204.48,0.00013699,2]
[381131632,1756065033065,-751.24,0.0001388,2]
[381131634,1756065033081,-150.0,0.00014142,2]
[381131636,1756065033097,-2500.0,0.00014142,2]
[381131638,1756065033113,-250.0,0.00014142,2]
[381131640,1756065033130,-203.0,0.00014142,2]
[381131642,1756065033146,-151.0,0.00014159,2]
[381131644,1756065033162,-693.57946196,0.00014166,2]
[381131647,1756065033181,-506.42053804,0.00014166,2]
[381131648,1756065033196,-300.0,0.00014166,2]
[381131649,1756065033212,-182.0,0.00014167,2]
[381131651,1756065033229,-150.0,0.00014167,2]
[381131653,1756065033245,-203.0,0.00014168,2]
[381131656,1756065033261,-300.0,0.00014168,2]
[381131658,1756065033277,-1000.0,0.00014168,3]
[381131661,1756065033295,-2500.0,0.00014168,2]
[381131663,1756065033312,-2500.0,0.00014168,2]
[381131666,1756065033329,-250.0,0.00014168,2]
[381131669,1756065033346,-203.0,0.00014168,2]
[381131671,1756065033362,-300.0,0.00014168,2]
[381131674,1756065033380,-1000.0,0.00014168,3]
[381131676,1756065033392,-500.0,0.00014269,2]
[381131678,1756065033402,-151.0,0.00014269,2]
[381131680,1756065033413,-160.08856684,0.00014273,2]
[381131681,1756065033424,-500.0,0.00014324,2]
[381131682,1756065033434,-1630.65460931,0.00014334,2]
[381131683,1756065033444,-500.0,0.00014379,2]
[381131684,1756065033453,-500.0,0.00014433,2]
[381131685,1756065033464,-500.0,0.00014433,2]
[381131686,1756065033474,-336.66035987,0.00014433,2]
[381131687,1756065033484,-500.0,0.00014433,2]
[381131688,1756065033494,-479.46576524,0.00014433,2]
[381131728,1756065034010,-500.0,0.00014434,2]
[381131731,1756065034058,-500.0,0.00014489,2]
[381131732,1756065034097,-500.0,0.00014544,2]
[381131733,1756065034112,-500.0,0.00014599,2]
[381131734,1756065034123,-500.0,0.00014654,2]
[381131735,1756065034133,-159.6,0.00014684,2]
[381131736,1756065034144,-500.0,0.00014709,2]
[381131737,1756065034154,-151.0,0.00014817,2]
[381131738,1756065034163,-405.5798196,0.00015089,2]
[381131739,1756065034173,-264.32194402,0.00015089,2]
[381131740,1756065034183,-233.0,0.00015178,2]
[381131741,1756065034193,-255.0,0.00015286,2]
[381131742,1756065034202,-420.0,0.00015517,2]
[381131743,1756065034213,-1680.0,0.00015583,2]
[381131744,1756065034222,-372.0,0.00015853,2]
[381131745,1756065034232,-633.0,0.00015853,2]
[381131746,1756065034242,-220.0,0.00015853,2]
[381131747,1756065034251,-174.0,0.00015916,2]
[381131748,1756065034261,-153.24301584,0.00015916,2]
[381131749,1756065034271,-159.6,0.00016018,2]
[381131750,1756065034280,-243.89932928,0.00016212,2]
[381131751,1756065034290,-466.55,0.00016386,2]
[381131752,1756065034302,-433.0,0.0001649,2]
[381131753,1756065034311,-2751.0,0.00016733,2]
[381131754,1756065034320,-666.0,0.00016758,3]
[381131755,1756065034330,-151.0,0.00016941,2]
[381131756,1756065034339,-151.0,0.00016949,2]
[381131757,1756065034349,-587.0,0.00016997,2]
[381131758,1756065034359,-2351.0,0.00017141,2]
[381131759,1756065034368,-157.82,0.00017337,2]
[381131760,1756065034378,-157.82,0.00017345,2]
[381131761,1756065034388,-159.6,0.00017353,2]
[381131762,1756065034397,-157.82,0.00017354,2]
[381131763,1756065034407,-157.82,0.00017363,2]
[381131764,1756065034416,-157.82,0.00017371,2]
[381131765,1756065034426,-157.82,0.0001738,2]
[381131766,1756065034436,-157.82,0.00017389,2]
[381131767,1756065034445,-157.82,0.00017397,2]
[381131768,1756065034455,-157.82,0.00017406,2]
[381131769,1756065034465,-157.82,0.00017415,2]
[381131770,1756065034474,-157.82,0.00017423,2]
[381131771,1756065034484,-225.35,0.00017427,2]
[381131772,1756065034494,-322.79,0.0001754,2]
[381131773,1756065034504,-1653.79,0.0001754,2]
[381131774,1756065034514,-281.6,0.000176,2]
[381131775,1756065034524,-244.2,0.00017621,2]
[381131776,1756065034534,-713.16,0.00017733,2]
[381131777,1756065034545,-2879.53237404,0.00017866,2]
[381131778,1756065034575,-500.0,0.00014433,2]
[381131779,1756065034586,-117.79762596,0.00017866,2]
[381131780,1756065034595,-250.0,0.00017971,2]
[381131781,1756065034604,-724.83247991,0.00017992,2]
[381131782,1756065036022,-500.0,0.00014433,2]
[381131783,1756065036031,-480.35577184,0.00014433,2]
[381131784,1756065036040,-3716.44752009,0.00017992,2]
[381131785,1756065036052,-1000.0,0.00018226,2]
[381131786,1756065036066,-1653.79,0.00018417,2]
[381131787,1756065036075,-1000.0,0.00018469,2]
[381131788,1756065036085,-322.79,0.00018514,2]
[381131789,1756065036094,-1000.0,0.00018578,2]
[381131790,1756065036105,-675.24340376,0.00018589,2]
[381131791,1756065036117,-324.75659624,0.00018589,2]
[381131792,1756065036127,-159.6,0.00018688,2]
[381131793,1756065036138,-200.0,0.00018746,2]
[381131794,1756065036148,-171.81687342,0.00018773,2]
[381131795,1756065036159,-1328.18312658,0.00018773,2]
[381131796,1756065036169,-1939.0,0.00018855,2]
[381131797,1756065036179,-150.0,0.00018902,2]
[381131798,1756065036189,-243.89932928,0.00019002,2]
[381131799,1756065036198,-150.0,0.00019012,2]
[381131800,1756065036208,-1000.0,0.00019056,2]
[381131801,1756065036218,-1000.0,0.00019102,2]
[381131802,1756065036228,-1000.0,0.00019127,2]
[381131803,1756065036238,-1000.0,0.00019132,2]
[381131804,1756065036248,-150.0,0.00019208,2]
[381131805,1756065036258,-1000.0,0.00019209,2]
[381131806,1756065036267,-152.24260034,0.0001924,2]
[381131807,1756065036277,-1000.0,0.00019244,2]
[381131808,1756065036286,-1000.0,0.00019255,2]
[381131809,1756065036295,-844.35788172,0.00019271,2]
[381131810,1756065036305,-150.0,0.00019279,2]
[381131811,1756065036314,-1653.79,0.00019294,2]
[381131812,1756065036324,-401.5725806,0.00019307,2]
[381131813,1756065036334,-1000.0,0.00019339,2]
[381131814,1756065036343,-1000.0,0.00019366,2]
[381131815,1756065036352,-847.82840282,0.00019485,2]
[381131816,1756065036362,-322.79,0.00019489,2]
[381131817,1756065036372,-1000.0,0.00019503,2]
[381131818,1756065036381,-536.62200023,0.0001959,2]
[381131819,1756065036391,-1000.0,0.00019607,2]
[381131820,1756065036400,-1000.0,0.00019613,2]
[381131821,1756065036410,-1000.0,0.00019689,2]
[381131822,1756065036419,-1000.0,0.00019696,2]
[381131823,1756065036429,-200.0,0.000197,2]
[381131824,1756065036767,-150.0,0.00019701,4]
[381131825,1756065036777,-150.0,0.00019701,4]
[381131826,1756065036786,-150.0,0.00019701,4]
[381131827,1756065036797,-150.0,0.00019701,4]
[381131828,1756065036806,-150.0,0.00019701,4]
[381131829,1756065036816,-150.0,0.00019701,4]
[381131830,1756065036825,-150.0,0.00019701,4]
[381131831,1756065036835,-150.0,0.00019701,4]
[381131832,1756065036844,-150.0,0.00019701,4]
[381131833,1756065036853,-150.0,0.00019701,4]
[381131834,1756065036863,-150.0,0.00019701,4]
[381131835,1756065036872,-150.0,0.00019701,4]
[381131836,1756065036882,-150.0,0.00019701,4]
[381131837,1756065036891,-150.0,0.00019735,2]
[381131838,1756065036901,-150.0,0.00019745,4]
[381131839,1756065036911,-1000.0,0.00019749,2]
[381131840,1756065036920,-1000.0,0.00019756,2]
[381131841,1756065036929,-150.0,0.00019759,4]
[381131842,1756065036939,-150.0,0.00019789,4]
[381131843,1756065036949,-281.6,0.000198,2]
[381131844,1756065036958,-150.0,0.00019801,4]
[381131845,1756065036968,-150.0,0.00019817,4]
[381131846,1756065036977,-150.0,0.00019822,2]
[381131847,1756065036987,-150.0,0.00019823,4]
[381131848,1756065036996,-150.0,0.00019833,4]
[381131849,1756065037006,-150.0,0.00019847,4]
[381131850,1756065037018,-1000.0,0.00019854,2]
[381131851,1756065037027,-150.0,0.00019858,4]
[381131852,1756065037037,-1000.0,0.00019874,2]
[381131853,1756065037047,-150.0,0.00019874,4]
[381131854,1756065037060,-150.0,0.00019876,4]
[381131855,1756065037069,-1000.0,0.00019882,2]
[381131856,1756065037079,-1000.0,0.00019888,2]
[381131857,1756065037088,-1425.0,0.00019892,2]
[381131858,1756065037099,-150.0,0.000199,4]
[381131859,1756065037108,-150.0,0.0001992,4]
[381131860,1756065037118,-150.0,0.0001992,4]
[381131861,1756065037128,-150.0,0.0001992,4]
[381131862,1756065037139,-1000.0,0.00019924,2]
[381131863,1756065037148,-1000.0,0.00019924,2]
[381131864,1756065037158,-1425.0,0.00019928,2]
[381131865,1756065037168,-150.0,0.00019932,4]
[381131866,1756065037177,-150.0,0.00019945,4]
[381131867,1756065037188,-713.16,0.00019949,2]
[381131868,1756065037198,-150.0,0.00019964,4]
[381131869,1756065037208,-150.0,0.00019975,4]
[381131870,1756065037219,-150.0,0.00019989,2]
[381131871,1756065037229,-150.0,0.00019989,4]
[381131872,1756065037239,-150.0,0.00019993,4]
[381131873,1756065037248,-150.0,0.0002,4]
[381131874,1756065037258,-150.0,0.00020008,4]
[381131875,1756065037268,-150.0,0.00020014,4]
[381131876,1756065037279,-150.0,0.00020014,4]
[381131877,1756065037288,-150.0,0.00020014,4]
[381131878,1756065037299,-1425.0,0.00020023,2]
[381131879,1756065037309,-159.6,0.00020023,2]
[381131880,1756065037320,-1000.0,0.00020034,2]
[381131881,1756065037329,-150.0,0.00020047,4]
[381131882,1756065037339,-150.0,0.00020052,4]
[381131883,1756065037349,-150.0,0.00020066,4]
[381131884,1756065037358,-3083.72,0.00020074,2]
[381131885,1756065037367,-1425.0,0.00020078,2]
[381131886,1756065037377,-1000.0,0.00020084,2]
[381131887,1756065037387,-150.0,0.00020095,4]
[381131888,1756065037396,-1852.42,0.00020097,2]
[381131889,1756065037406,-150.0,0.00020099,4]
[381131890,1756065037416,-150.0,0.00020105,4]
[381131891,1756065037426,-150.0,0.00020121,2]
[381131892,1756065037436,-150.0,0.00020139,4]
[381131893,1756065037446,-150.0,0.00020139,4]
[381131894,1756065037455,-150.0,0.00020139,4]
[381131895,1756065037465,-150.0,0.00020139,4]
[381131896,1756065037474,-300.0,0.00020144,2]
[381131897,1756065037485,-150.0,0.00020162,4]
[381131898,1756065037494,-150.0,0.0002017,4]
[381131899,1756065037504,-1653.79,0.00020171,2]
[381131900,1756065037513,-1000.0,0.00020173,2]
[381131901,1756065037523,-150.0,0.00020183,4]
[381131902,1756065037533,-204.48,0.00020187,2]
[381131903,1756065037543,-150.0,0.00020188,4]
[381131904,1756065037556,-150.0,0.00020189,2]
[381131905,1756065037567,-150.0,0.00020199,4]
[381131906,1756065037576,-150.0,0.00020203,2]
[381131907,1756065037586,-1000.0,0.00020206,2]
[381131908,1756065037596,-150.0,0.0002022,4]
[381131909,1756065037606,-1425.0,0.00020226,2]
[381131910,1756065037616,-150.0,0.00020227,4]
[381131911,1756065037625,-1000.0,0.00020242,2]
[381131912,1756065037636,-150.0,0.00020249,4]
[381131913,1756065037645,-1425.0,0.00020251,2]
[381131914,1756065037655,-1425.0,0.00020254,2]
[381131915,1756065037665,-150.0,0.00020271,4]
[381131916,1756065037674,-655.04448512,0.00020271,2]
[381131917,1756065037684,-1425.0,0.00020276,2]
[381131918,1756065037695,-150.0,0.00020277,4]
[381131919,1756065037706,-150.0,0.00020285,4]
[381131920,1756065037716,-1425.0,0.00020291,2]
[381131921,1756065037726,-150.0,0.00020297,2]
[381131922,1756065037738,-150.0,0.00020298,4]
[381131923,1756065037748,-1000.0,0.000203,2]
[381131924,1756065037758,-150.0,0.00020309,4]
[381131925,1756065037769,-150.0,0.00020312,2]
[381131926,1756065037779,-150.0,0.00020314,4]
[381131927,1756065037789,-150.0,0.00020317,2]
[381131928,1756065037804,-1425.0,0.00020319,2]
[381131929,1756065037815,-150.0,0.0002032,2]
[381131930,1756065037826,-150.0,0.00020327,4]
[381131931,1756065037837,-150.0,0.00020327,4]
[381131932,1756065037847,-150.0,0.00020327,4]
[381131933,1756065037857,-150.0,0.00020335,4]
[381131934,1756065037867,-150.0,0.00020358,4]
[381131935,1756065037877,-150.0,0.00020358,4]
[381131936,1756065037887,-150.0,0.00020358,4]
[381131937,1756065037897,-1000.0,0.0002036,2]
[381131938,1756065037906,-150.0,0.00020376,2]
[381131939,1756065037917,-150.0,0.00020393,4]
[381131940,1756065037928,-466.55,0.00020395,2]
[381131941,1756065037938,-150.0,0.00020398,4]
[381131942,1756065037949,-150.0,0.00020402,4]
[381131943,1756065037958,-150.0,0.00020402,2]
[381131944,1756065037968,-150.0,0.00020422,2]
[381131945,1756065037978,-150.0,0.00020427,2]
[381131946,1756065037988,-150.0,0.00020431,4]
[381131947,1756065037999,-150.0,0.00020431,4]
[381131948,1756065038009,-150.0,0.00020446,4]
[381131949,1756065038019,-1000.0,0.00020449,2]
[381131950,1756065038028,-150.0,0.0002045,4]
[381131951,1756065038038,-322.79,0.00020463,2]
[381131953,1756065038050,-1000.0,0.00020466,2]
[381131955,1756065038064,-1000.0,0.00020479,2]
[381131956,1756065038074,-1425.0,0.00020483,2]
[381131958,1756065038083,-150.0,0.00020483,4]
[381131960,1756065038094,-1000.0,0.00020487,2]
[381131962,1756065038104,-150.0,0.00020489,4]
[381131964,1756065038113,-150.0,0.00020497,4]
[381131967,1756065038122,-1000.0,0.00020502,2]
[381131970,1756065038132,-1425.0,0.00020506,2]
[381131972,1756065038142,-150.0,0.00020508,4]
[381131974,1756065038152,-150.0,0.00020516,2]
[381131976,1756065038161,-150.0,0.00020522,4]
[381131978,1756065038171,-150.0,0.00020533,4]
[381131980,1756065038180,-150.0,0.00020546,2]
[381131982,1756065038190,-150.0,0.00020553,4]
[381131984,1756065038199,-150.0,0.00020565,4]
[381131986,1756065038210,-1000.0,0.00020572,2]
[381131988,1756065038219,-1000.0,0.00020576,2]
[381131989,1756065038229,-150.0,0.00020577,4]
[381131990,1756065038240,-150.0,0.00020577,4]
[381131991,1756065038250,-150.0,0.00020577,4]
[381131992,1756065038260,-150.0,0.00020577,4]
[381131993,1756065038270,-1000.0,0.0002059,2]
[381131994,1756065038280,-150.0,0.00020597,4]
[381131995,1756065038290,-1425.0,0.00020611,2]
[381131996,1756065038301,-150.0,0.00020617,2]
[381131997,1756065038311,-150.0,0.00020621,4]
[381131998,1756065038321,-150.0,0.00020623,4]
[381131999,1756065038330,-1000.0,0.00020634,2]
[381132000,1756065038339,-150.0,0.0002064,4]
[381132001,1756065038349,-150.0,0.0002064,4]
[381132002,1756065038359,-150.0,0.0002064,4]
[381132003,1756065038369,-210.35,0.00020644,2]
[381132004,1756065038378,-14508.20700773,0.00020649,2]
[381132005,1756065038387,-300.5457,0.00020652,2]
[381132006,1756065038397,-1000.0,0.00020654,2]
[381132007,1756065038406,-150.0,0.00020665,4]
[381132008,1756065038416,-1000.0,0.00020668,2]
[381132009,1756065038426,-150.0,0.00020674,4]
[381132010,1756065038435,-150.0,0.00020681,4]
[381132011,1756065038444,-1425.0,0.00020689,2]
[381132012,1756065038454,-695.39793187,0.00020689,2]
[381132013,1756065038464,-267.46074303,0.00020689,2]
[381132014,1756065038473,-1044.24094138,0.00020689,2]
[381132015,1756065038512,-4155.19590306,0.00020689,2]
[381132016,1756065038521,-1000.0,0.00020689,2]
[381132017,1756065038531,-1000.0,0.00020689,2]
[381132018,1756065038541,-1000.0,0.00020689,2]
[381132020,1756065038552,-1000.0,0.00020689,2]
[381132022,1756065038561,-756.685958,0.00020689,2]
[381132024,1756065038570,-160.0,0.00020689,2]
[381132026,1756065038579,-151.0,0.00020689,2]
[381132027,1756065038588,-151.0,0.00020689,2]
[381132029,1756065038598,-151.0,0.00020689,2]
[381132031,1756065038607,-151.0,0.00020689,2]
[381132033,1756065038617,-151.0,0.00020689,2]
[381132035,1756065038627,-152.98559753,0.00020689,2]
[381132036,1756065038636,-322.6107,0.00020689,2]
[381132038,1756065038645,-219.40690608,0.00020689,2]
[381132040,1756065038655,-1000.0,0.0002069,2]
[381132042,1756065038665,-150.0,0.00020692,2]
[381132045,1756065038674,-150.0,0.00020696,4]
[381132047,1756065038684,-150.0,0.00020708,4]
[381132049,1756065038693,-1000.0,0.00020717,2]
[381132051,1756065038702,-150.0,0.00020723,4]
[381132053,1756065038711,-871.51248216,0.00020728,2]
[381132055,1756065038721,-1000.0,0.0002073,2]
[381132057,1756065038730,-150.0,0.00020738,4]
[381132059,1756065038739,-359.45,0.00020742,2]
[381132061,1756065038749,-2674.18275551,0.00020744,2]
[381132063,1756065038760,-2717.63325218,0.00020744,2]
[381132065,1756065038770,-1000.0,0.00020745,2]
[381132067,1756065038779,-776.44309081,0.00020749,2]
[381132072,1756065038816,-648.55690919,0.00020749,2]
[381132074,1756065038827,-2031.0,0.00020752,2]
[381132076,1756065038837,-3183.10992884,0.00020752,2]
[381132078,1756065038850,-189.89007116,0.00020752,2]
[381132080,1756065038859,-925.0,0.00020752,2]
[381132082,1756065038870,-1255.0,0.00020752,2]
[381132084,1756065038880,-1298.0,0.00020752,2]
[381132086,1756065038891,-1657.0,0.00020752,2]
[381132088,1756065038900,-566.0,0.00020752,2]
[381132090,1756065038910,-599.0,0.00020752,2]
[381132092,1756065038920,-4153.0,0.00020752,2]
[381132094,1756065038930,-997.198,0.00020752,2]
[381132096,1756065038939,-1203.629,0.00020752,2]
[381132098,1756065038949,-718.0,0.00020752,2]
[381132100,1756065038958,-150.0,0.00020752,4]
[381132102,1756065038967,-1000.0,0.00020771,2]
[381132104,1756065038977,-1425.0,0.00020779,2]
[381132106,1756065038987,-1000.0,0.00020784,2]
[381132108,1756065038995,-277.37050832,0.0002079,2]
[381132110,1756065039005,-1000.0,0.00020792,2]
[381132112,1756065039014,-150.0,0.00020793,2]
[381132114,1756065039024,-1000.0,0.00020793,2]
[381132115,1756065039033,-150.0,0.00020796,4]
[381132117,1756065039042,-150.0,0.00020796,4]
[381132120,1756065039055,-150.0,0.00020796,4]
[381132122,1756065039068,-150.0,0.00020796,4]
[381132123,1756065039078,-150.0,0.00020796,4]
[381132125,1756065039088,-150.0,0.00020796,4]
[381132127,1756065039098,-150.0,0.00020796,4]
[381132129,1756065039108,-150.0,0.00020796,4]
[381132131,1756065039117,-5591.31319997,0.00020799,2]
[381132134,1756065039127,-350.0,0.000208,2]
[381132136,1756065039136,-14508.20700768,0.00020809,2]
[381132137,1756065039146,-150.0,0.00020811,2]
[381132139,1756065039156,-150.0,0.00020817,2]
[381132140,1756065039166,-1000.0,0.00020825,2]
[381132141,1756065039175,-359.45,0.00020834,2]
[381132142,1756065039186,-150.0,0.0002084,4]
[381132143,1756065039195,-1425.0,0.00020851,2]
[381132144,1756065039205,-150.0,0.00020853,4]
[381132145,1756065039214,-150.0,0.00020854,2]
[381132146,1756065039224,-5798.19178837,0.00020854,2]
[381132147,1756065039233,-798.34,0.00020858,2]
[381132148,1756065039243,-150.0,0.00020869,4]